Workbook

Sheet Title
C1: Calculation practice activities to accompany CHAPTER 10
C3: Social Statistics in Action: A Canadian Introduction
C4: Andrea M. Noack
C6: Oxford University Press, 2018
C8: For more information, visit:
C9: https://www.oupcanada.com/catalog/9780199015214.html

Sheet Pearson's r
B1: PRACTICE CALCULATING PEARSON'S CORRELATION COEFFICIENTS
B3: Using the values in the yellow highlighted cells, calculate the sum of products, the sum of squares X, the sum of squares Y. Then, calculate Pearson's correlation coefficient, the degrees of freedom and the t-statistic. Keep two decimal places throughout your calculations. To check your answers, click on the 'Show Correlation Coefficient' and/or 'Show T-Statistic' buttons.
B6: Case # | C6: Value on Variable X | D6: Value on Variable Y | F6: Means
F7: Mean of Variable X (x-bar): | H7: 11.9
B8: 1 | C8: 13 | D8: 18 | F8: Mean of Variable Y (y-bar): | H8: 13.2
B9: 2 | C9: 18 | D9: 3
B10: 3 | C10: 26 | D10: 18 | F10: Pearson's Correlation Coefficient
B11: 4 | C11: 1 | D11: 5 | F11: Sum of Products: | H11: hidden
B12: 5 | C12: 23 | D12: 12 | F12: Sum of Squares X: | H12: hidden
B13: 6 | C13: 10 | D13: 2 | F13: Sum of Squares Y: | H13: hidden
B14: 7 | C14: 11 | D14: 15 | F14: Correlation Coefficient: | H14: hidden
B15: 8 | C15: 4 | D15: 25
B16: 9 | C16: 9 | D16: 15 | F16: T-statistic for Pearson's Correlation Coefficient
B17: 10 | C17: 4 | D17: 19 | F17: Number of Cases (n): | H17: 10
F18: Degrees of Freedom: | H18: hidden
B19: Need some help? | F19: T-statistic: | H19: hidden
F21: If the t-statistic is beyond +/-2.31 then p<0.05.
B23: SUM OF PRODUCTS CALCULATION
B24: Case # | C24: Value on Variable X | D24: Mean of Variable X | E24: (Value-Mean) Variable X | G24: Value on Variable Y | H24: Mean of Variable Y | I24: (Value-Mean) Variable Y | K24: (Value-Mean Variable X) x (Value-Mean Variable Y)
B25: 1 | C25: 13 | D25: 11.9 | E25: 13 - 11.9 = ? | G25: 18 | H25: 13.2 | I25: 18 - 13.2 = ? | K25: 1.1 x 4.8 = ?
B26: 2 | C26: 18 | D26: 11.9 | E26: 18 - 11.9 = ? | G26: 3 | H26: 13.2 | I26: 3 - 13.2 = ? | K26: 6.1 x -10.2 = ?
B27: 3 | C27: 26 | D27: 11.9 | E27: 26 - 11.9 = ? | G27: 18 | H27: 13.2 | I27: 18 - 13.2 = ? | K27: 14.1 x 4.8 = ?
B28: 4 | C28: 1 | D28: 11.9 | E28: 1 - 11.9 = ? | G28: 5 | H28: 13.2 | I28: 5 - 13.2 = ? | K28: -10.9 x -8.2 = ?
B29: 5 | C29: 23 | D29: 11.9 | E29: 23 - 11.9 = ? | G29: 12 | H29: 13.2 | I29: 12 - 13.2 = ? | K29: 11.1 x -1.2 = ?
B30: 6 | C30: 10 | D30: 11.9 | E30: 10 - 11.9 = ? | G30: 2 | H30: 13.2 | I30: 2 - 13.2 = ? | K30: -1.9 x -11.2 = ?
B31: 7 | C31: 11 | D31: 11.9 | E31: 11 - 11.9 = ? | G31: 15 | H31: 13.2 | I31: 15 - 13.2 = ? | K31: -0.9 x 1.8 = ?
B32: 8 | C32: 4 | D32: 11.9 | E32: 4 - 11.9 = ? | G32: 25 | H32: 13.2 | I32: 25 - 13.2 = ? | K32: -7.9 x 11.8 = ?
B33: 9 | C33: 9 | D33: 11.9 | E33: 9 - 11.9 = ? | G33: 15 | H33: 13.2 | I33: 15 - 13.2 = ? | K33: -2.9 x 1.8 = ?
B34: 10 | C34: 4 | D34: 11.9 | E34: 4 - 11.9 = ? | G34: 19 | H34: 13.2 | I34: 19 - 13.2 = ? | K34: -7.9 x 5.8 = ?
J35: Column Sum (Σ) | K35: = ?
B37: SUM OF SQUARES X CALCULATION
B38: Case # | C38: Value on Variable X | D38: Mean of Variable X | E38: (Value-Mean) Variable X | G38: (Value-Mean)2 Variable X
B39: 1 | C39: 13 | D39: 11.9 | E39: 13 - 11.9 = ? | G39: 1.1 x 1.1 = ?
B40: 2 | C40: 18 | D40: 11.9 | E40: 18 - 11.9 = ? | G40: 6.1 x 6.1 = ?
B41: 3 | C41: 26 | D41: 11.9 | E41: 26 - 11.9 = ? | G41: 14.1 x 14.1 = ?
B42: 4 | C42: 1 | D42: 11.9 | E42: 1 - 11.9 = ? | G42: -10.9 x -10.9 = ?
B43: 5 | C43: 23 | D43: 11.9 | E43: 23 - 11.9 = ? | G43: 11.1 x 11.1 = ?
B44: 6 | C44: 10 | D44: 11.9 | E44: 10 - 11.9 = ? | G44: -1.9 x -1.9 = ?
B45: 7 | C45: 11 | D45: 11.9 | E45: 11 - 11.9 = ? | G45: -0.9 x -0.9 = ?
B46: 8 | C46: 4 | D46: 11.9 | E46: 4 - 11.9 = ? | G46: -7.9 x -7.9 = ?
B47: 9 | C47: 9 | D47: 11.9 | E47: 9 - 11.9 = ? | G47: -2.9 x -2.9 = ?
B48: 10 | C48: 4 | D48: 11.9 | E48: 4 - 11.9 = ? | G48: -7.9 x -7.9 = ?
F49: Column Sum (Σ) | G49: = ?
B51: SUM OF SQUARES Y CALCULATION
B52: Case # | C52: Value on Variable Y | D52: Mean of Variable Y | E52: (Value-Mean) Variable Y | G52: (Value-Mean)2 Variable Y
B53: 1 | C53: 18 | D53: 13.2 | E53: 18 - 13.2 = ? | G53: 4.8 x 4.8 = ?
B54: 2 | C54: 3 | D54: 13.2 | E54: 3 - 13.2 = ? | G54: -10.2 x -10.2 = ?
B55: 3 | C55: 18 | D55: 13.2 | E55: 18 - 13.2 = ? | G55: 4.8 x 4.8 = ?
B56: 4 | C56: 5 | D56: 13.2 | E56: 5 - 13.2 = ? | G56: -8.2 x -8.2 = ?
B57: 5 | C57: 12 | D57: 13.2 | E57: 12 - 13.2 = ? | G57: -1.2 x -1.2 = ?
B58: 6 | C58: 2 | D58: 13.2 | E58: 2 - 13.2 = ? | G58: -11.2 x -11.2 = ?
B59: 7 | C59: 15 | D59: 13.2 | E59: 15 - 13.2 = ? | G59: 1.8 x 1.8 = ?
B60: 8 | C60: 25 | D60: 13.2 | E60: 25 - 13.2 = ? | G60: 11.8 x 11.8 = ?
B61: 9 | C61: 15 | D61: 13.2 | E61: 15 - 13.2 = ? | G61: 1.8 x 1.8 = ?
B62: 10 | C62: 19 | D62: 13.2 | E62: 19 - 13.2 = ? | G62: 5.8 x 5.8 = ?
F63: Column Sum (Σ) | G63: = ?
B65: PEARSON'S CORRELATION COEFFICIENT CALCULATION
B66: Correlation Coefficient Numerator
D67: = -37.8
B68: Correlation Coefficient Denominator
D69: = square root of 616.9 x square root of 523.6
D70: = ? x ?
D71: = ?
B72: Correlation Coefficient
D73: = -37.8 ÷ 568.34
D74: = ?
B76: T-STATISTIC CALCULATION
B77: Degrees of Freedom
D78: = 10 - 2
D79: = ?
B80: T-Statistic Fraction Numerator
D81: = 10 - 2
D82: = ?
B83: T-Statistic Fraction Denominator
D84: = 1 - (-0.07²)
D85: = ? - ?
D86: = ?
B87: T-Statistic
D88: = -0.07 x [square root of (8 ÷ 1)]
D89: = ? x (square root of ?)
D90: = ? x ?
D91: = ?

Sheet Spearman's rho
B1: PRACTICE CALCULATING SPEARMAN'S RANK-ORDER CORRELATION COEFFICIENTS
B3: Use the values in the yellow highlighted cells to find the rank of each case on Variable X and Variable Y. Then, use the ranks to calculate the sum of products, the sum of squares X, the sum of squares Y, followed by Spearman's correlation coefficient, the degrees of freedom and the t-statistic. Keep two decimal places throughout your calculations. To check your answers, click on the 'Show Ranks', 'Show Correlation Coefficient' and/or 'Show T-Statistic' buttons.
B6: Case # | C6: Value on Variable X | D6: Rank of Case on Variable X | E6: Value on Variable Y | F6: Rank of Case on Variable Y | H6: Means
H7: Mean of Variable X Ranks (x-bar): | J7: 5.5
B8: 1 | C8: 30 | D8: hidden | E8: 46 | F8: hidden | H8: Mean of Variable Y Ranks (y-bar): | J8: 5.5
B9: 2 | C9: 10 | D9: hidden | E9: 9 | F9: hidden
B10: 3 | C10: 21 | D10: hidden | E10: 41 | F10: hidden | H10: Spearman's Correlation Coefficient
B11: 4 | C11: 4 | D11: hidden | E11: 27 | F11: hidden | H11: Sum of Products (for ranks): | J11: hidden
B12: 5 | C12: 16 | D12: hidden | E12: 31 | F12: hidden | H12: Sum of Squares X (for ranks): | J12: hidden
B13: 6 | C13: 10 | D13: hidden | E13: 20 | F13: hidden | H13: Sum of Squares Y (for ranks): | J13: hidden
B14: 7 | C14: 21 | D14: hidden | E14: 42 | F14: hidden | H14: Correlation Coefficient: | J14: hidden
B15: 8 | C15: 21 | D15: hidden | E15: 49 | F15: hidden
B16: 9 | C16: 28 | D16: hidden | E16: 20 | F16: hidden | H16: T-statistic for Spearman's Correlation Coefficient
B17: 10 | C17: 3 | D17: hidden | E17: 20 | F17: hidden | H17: Number of Cases (n): | J17: 10
H18: Degrees of Freedom: | J18: hidden
H19: T-statistic: | J19: hidden
B20: Need some help?
H21: If the t-statistic is beyond +/-2.10 then p<0.05.
B23: SUM OF PRODUCTS CALCULATION
B24: Case # | C24: Rank of Case on Variable X | D24: Mean of Variable X Ranks | E24: (Rank-Mean) Variable X | F24: Rank of Case on Variable Y | G24: Mean of Variable Y Ranks | I24: (Rank-Mean) Variable Y | J24: (Rank-Mean Variable X) x (Rank-Mean Variable Y)
B25: 1 | C25: ? | D25: 5.5 | E25: 10 - 5.5 = ? | F25: ? | G25: 5.5 | I25: 9 - 5.5 = ? | J25: 4.5 x 3.5 = ?
B26: 2 | C26: ? | D26: 5.5 | E26: 3.5 - 5.5 = ? | F26: ? | G26: 5.5 | I26: 1 - 5.5 = ? | J26: -2 x -4.5 = ?
B27: 3 | C27: ? | D27: 5.5 | E27: 7 - 5.5 = ? | F27: ? | G27: 5.5 | I27: 7 - 5.5 = ? | J27: 1.5 x 1.5 = ?
B28: 4 | C28: ? | D28: 5.5 | E28: 2 - 5.5 = ? | F28: ? | G28: 5.5 | I28: 5 - 5.5 = ? | J28: -3.5 x -0.5 = ?
B29: 5 | C29: ? | D29: 5.5 | E29: 5 - 5.5 = ? | F29: ? | G29: 5.5 | I29: 6 - 5.5 = ? | J29: -0.5 x 0.5 = ?
B30: 6 | C30: ? | D30: 5.5 | E30: 3.5 - 5.5 = ? | F30: ? | G30: 5.5 | I30: 3 - 5.5 = ? | J30: -2 x -2.5 = ?
B31: 7 | C31: ? | D31: 5.5 | E31: 7 - 5.5 = ? | F31: ? | G31: 5.5 | I31: 8 - 5.5 = ? | J31: 1.5 x 2.5 = ?
B32: 8 | C32: ? | D32: 5.5 | E32: 7 - 5.5 = ? | F32: ? | G32: 5.5 | I32: 10 - 5.5 = ? | J32: 1.5 x 4.5 = ?
B33: 9 | C33: ? | D33: 5.5 | E33: 9 - 5.5 = ? | F33: ? | G33: 5.5 | I33: 3 - 5.5 = ? | J33: 3.5 x -2.5 = ?
B34: 10 | C34: ? | D34: 5.5 | E34: 1 - 5.5 = ? | F34: ? | G34: 5.5 | I34: 3 - 5.5 = ? | J34: -4.5 x -2.5 = ?
I35: Column Sum (Σ) | J35: = ?
B37: SUM OF SQUARES X CALCULATION
B38: Case # | C38: Rank of Case on Variable X | D38: Mean of Variable X Ranks | E38: (Rank-Mean) Variable X | F38: (Rank-Mean)2 Variable X
B39: 1 | C39: ? | D39: 5.5 | E39: 10 - 5.5 = ? | F39: 4.5 x 4.5 = ?
B40: 2 | C40: ? | D40: 5.5 | E40: 3.5 - 5.5 = ? | F40: -2 x -2 = ?
B41: 3 | C41: ? | D41: 5.5 | E41: 7 - 5.5 = ? | F41: 1.5 x 1.5 = ?
B42: 4 | C42: ? | D42: 5.5 | E42: 2 - 5.5 = ? | F42: -3.5 x -3.5 = ?
B43: 5 | C43: ? | D43: 5.5 | E43: 5 - 5.5 = ? | F43: -0.5 x -0.5 = ?
B44: 6 | C44: ? | D44: 5.5 | E44: 3.5 - 5.5 = ? | F44: -2 x -2 = ?
B45: 7 | C45: ? | D45: 5.5 | E45: 7 - 5.5 = ? | F45: 1.5 x 1.5 = ?
B46: 8 | C46: ? | D46: 5.5 | E46: 7 - 5.5 = ? | F46: 1.5 x 1.5 = ?
B47: 9 | C47: ? | D47: 5.5 | E47: 9 - 5.5 = ? | F47: 3.5 x 3.5 = ?
B48: 10 | C48: ? | D48: 5.5 | E48: 1 - 5.5 = ? | F48: -4.5 x -4.5 = ?
E49: Column Sum (Σ) | F49: = ?
B51: SUM OF SQUARES Y CALCULATION
B52: Case # | C52: Rank of Case on Variable Y | D52: Mean of Variable Y | E52: (Rank-Mean) Variable Y | F52: (Rank-Mean)2 Variable Y
B53: 1 | C53: ? | D53: 5.5 | E53: 9 - 5.5 = ? | F53: 3.5 x 3.5 = ?
B54: 2 | C54: ? | D54: 5.5 | E54: 1 - 5.5 = ? | F54: -4.5 x -4.5 = ?
B55: 3 | C55: ? | D55: 5.5 | E55: 7 - 5.5 = ? | F55: 1.5 x 1.5 = ?
B56: 4 | C56: ? | D56: 5.5 | E56: 5 - 5.5 = ? | F56: -0.5 x -0.5 = ?
B57: 5 | C57: ? | D57: 5.5 | E57: 6 - 5.5 = ? | F57: 0.5 x 0.5 = ?
B58: 6 | C58: ? | D58: 5.5 | E58: 3 - 5.5 = ? | F58: -2.5 x -2.5 = ?
B59: 7 | C59: ? | D59: 5.5 | E59: 8 - 5.5 = ? | F59: 2.5 x 2.5 = ?
B60: 8 | C60: ? | D60: 5.5 | E60: 10 - 5.5 = ? | F60: 4.5 x 4.5 = ?
B61: 9 | C61: ? | D61: 5.5 | E61: 3 - 5.5 = ? | F61: -2.5 x -2.5 = ?
B62: 10 | C62: ? | D62: 5.5 | E62: 3 - 5.5 = ? | F62: -2.5 x -2.5 = ?
E63: Column Sum (Σ) | F63: = ?
B65: SPEARMAN'S CORRELATION COEFFICIENT CALCULATION
B66: Correlation Coefficient Numerator
D67: = 46.5
B68: Correlation Coefficient Denominator
D69: = square root of 80 x square root of 80.5
D70: = ? x ?
D71: = ?
B72: Correlation Coefficient
D73: = 46.5 ÷ 80.19
D74: = ?
B76: T-STATISTIC CALCULATION
B77: Degrees of Freedom
D78: = 10 - 2
D79: = ?
B80: T-Statistic Fraction Numerator
D81: = 10 - 2
D82: = ?
B83: T-Statistic Fraction Denominator
D84: = 1 - (0.58²)
D85: = ? - ?
D86: = ?
B87: T-Statistic
D88: = 0.58 x [square root of (8 ÷ 0.66)]
D89: = ? x (square root of ?)
D90: = ? x ?
D91: = ?

Sheet Pearson's r-A (hidden)
B1: PRACTICE CALCULATING PEARSON'S CORRELATION COEFFICIENTS
B3: Then calculate the sum of products, the sum of squares X, the sum of squares Y and the correlation coefficient. Keep two decimal places in your calculations. To check your answers, click on the 'Show Correlation Coefficient' and/or 'Show T-Statistic' buttons.
B6: Case # | C6: Value of Variable X | D6: Value of Variable Y | F6: Means | I6: =COUNTIF(J8:J19,0) -> 10 | L6: =IFERROR(ROUND(AVERAGE(D8:D19),2),"error") -> 13.2
F7: Mean of Variable X | H7: =ROUND(AVERAGE(C8:C17),2) -> 11.9
B8: 1 | C8: 13 | D8: 18 | F8: Mean of Variable Y | H8: =ROUND(AVERAGE(D8:D17),2) -> 13.2 | I8: =COUNTIF(J8:J19,1) -> 1 | J8: =COUNTBLANK(C8:D8) -> 0 | K8: =IF(ISNUMBER(C8),ROUND(C8-$K$6,2),0) ->  | L8: =IF(ISNUMBER(D8),ROUND(D8-$L$6,2),0) -> 4.8 | M8: =ROUND(K8*K8,2) ->  | N8: =ROUND(L8*L8,2) -> 23.04 | O8: =IF(AND(ISNUMBER(C8),ISNUMBER(D8)),ROUND(K8*L8,2),0) ->  | S8: =RANDBETWEEN(1,30) -> 24 | T8: =RANDBETWEEN(1,30) -> 29
B9: 2 | C9: 18 | D9: 3 | J9: =COUNTBLANK(C9:D9) -> 0 | K9: =IF(ISNUMBER(C9),ROUND(C9-$K$6,2),0) ->  | L9: =IF(ISNUMBER(D9),ROUND(D9-$L$6,2),0) -> -10.2 | M9: =ROUND(K9*K9,2) ->  | N9: 104.04 | O9: =IF(AND(ISNUMBER(C9),ISNUMBER(D9)),ROUND(K9*L9,2),0) ->  | Q9: =ROUND(O8*O8,2) ->  | R9: =ROUND(P8*P8,2) -> 0 | S9: =RANDBETWEEN(1,30) -> 14 | T9: 17
B10: 3 | C10: 26 | D10: 18 | F10: Pearson's Correlation Coefficient | I10: =IFERROR(ROUND(SUM(O8:O19),2),"error") -> error | J10: 0 | L10: 4.8 | N10: 23.04 | Q10: =ROUND(O9*O9,2) ->  | R10: 0 | S10: 2 | T10: 1
B11: 4 | C11: 1 | D11: 5 | F11: Sum of Products | H11: =N35 -> -37.8 | I11: =IFERROR(ROUND(SUM(M8:M19),2),"error") -> error | J11: 0 | L11: -8.2 | N11: 67.24 | R11: 0 | S11: 30 | T11: 26
B12: 5 | C12: 23 | D12: 12 | F12: Sum of Squares X | H12: =I49 -> 616.9 | I12: =IFERROR(ROUND(SUM(N8:N19),2),"error") -> 523.6 | J12: 0 | L12: -1.2 | N12: 1.44 | R12: 0 | S12: 17 | T12: 17
B13: 6 | C13: 10 | D13: 2 | F13: Sum of Squares Y | H13: =I63 -> 523.6 | J13: 0 | L13: -11.2 | N13: 125.44 | R13: 0 | S13: 24 | T13: 14
B14: 7 | C14: 11 | D14: 15 | F14: Correlation coefficient (r) | H14: =G74 -> -0.07 | I14: =IFERROR(ROUND(I10/I16,2),"error") -> error | J14: 0 | L14: 1.8 | N14: 3.24 | R14: 0 | S14: 24 | T14: 23
B15: 8 | C15: 4 | D15: 25 | I15: =IFERROR(ROUND(I11*I12,2),"error") -> error | J15: 0 | L15: 11.8 | N15: 139.24 | R15: 0 | S15: 9 | T15: 21
B16: 9 | C16: 9 | D16: 15 | F16: T-statistic for Pearson's Correlation Coefficient | I16: =IFERROR(ROUND(SQRT(I15),2),"error") -> error | J16: 0 | L16: 1.8 | N16: 3.24 | R16: 0 | S16: 16 | T16: 20
B17: 10 | C17: 4 | D17: 19 | F17: Number of Cases | H17: 10 | J17: 0 | L17: 5.8 | N17: 33.64 | R17: 0 | S17: 25 | T17: 12
F18: Degrees of Freedom | H18: =H17-2 -> 8 | J18: 2 | K18: 0 | L18: 0 | M18: 0 | N18: 0 | O18: 0 | R18: 0
B19: Need some help? | F19: T-statistic | H19: =G91 -> -0.2 | I19: ` | J19: =COUNTBLANK(D19:D19) -> 1 | K19: =IF(ISNUMBER(#REF!),ROUND(#REF!-$K$6,2),0) -> 0 | L19: 0 | M19: 0 | N19: 0 | O19: =IF(AND(ISNUMBER(#REF!),ISNUMBER(D19)),ROUND(K19*L19,2),0) -> 0
F21: If the T-statistic is greater than 2.10 then p<0.05.
B23: SUM OF PRODUCTS CALCULATION
B24: Case # | C24: Value of Variable X | D24: Mean of Variable X | E24: Value-Mean Variable X | G24: Value of Variable Y | H24: Mean of Variable Y | I24: Value-Mean Variable X | K24: (Value-Mean Variable X) x (Value-Mean Variable Y)
B25: 1 | C25: =C8 -> 13 | D25: =$H$7 -> 11.9 | E25: =CONCATENATE(C25," - ",D25," = ",L25) -> 13 - 11.9 = 1.1 | G25: =D8 -> 18 | H25: =$H$8 -> 13.2 | I25: =CONCATENATE(G25," - ",H25," = ",M25) -> 18 - 13.2 = 4.8 | K25: =CONCATENATE(L25," x ",M25," = ",N25) -> 1.1 x 4.8 = 5.28 | L25: =ROUND(C25-D25,2) -> 1.1 | M25: =ROUND(G25-H25,2) -> 4.8 | N25: =ROUND(L25*M25,2) -> 5.28 | O25: =CONCATENATE(C25," - ",D25," = ?") -> 13 - 11.9 = ? | Q25: =CONCATENATE(G25," - ",H25," = ?") -> 18 - 13.2 = ? | S25: =CONCATENATE(L25," x ",M25," = ?") -> 1.1 x 4.8 = ?
B26: 2 | C26: 18 | D26: =$H$7 -> 11.9 | E26: =CONCATENATE(C26," - ",D26," = ",L26) -> 18 - 11.9 = 6.1 | G26: 3 | H26: =$H$8 -> 13.2 | I26: =CONCATENATE(G26," - ",H26," = ",M26) -> 3 - 13.2 = -10.2 | K26: =CONCATENATE(L26," x ",M26," = ",N26) -> 6.1 x -10.2 = -62.22 | L26: =ROUND(C26-D26,2) -> 6.1 | M26: =ROUND(G26-H26,2) -> -10.2 | N26: =ROUND(L26*M26,2) -> -62.22 | O26: 18 - 11.9 = ? | Q26: =CONCATENATE(G26," - ",H26," = ?") -> 3 - 13.2 = ? | S26: =CONCATENATE(L26," x ",M26," = ?") -> 6.1 x -10.2 = ?
B27: 3 | C27: 26 | D27: 11.9 | E27: 26 - 11.9 = 14.1 | G27: 18 | H27: 13.2 | I27: 18 - 13.2 = 4.8 | K27: 14.1 x 4.8 = 67.68 | L27: 14.1 | M27: 4.8 | N27: 67.68 | O27: 26 - 11.9 = ? | Q27: 18 - 13.2 = ? | S27: 14.1 x 4.8 = ?
B28: 4 | C28: 1 | D28: 11.9 | E28: 1 - 11.9 = -10.9 | G28: 5 | H28: 13.2 | I28: 5 - 13.2 = -8.2 | K28: -10.9 x -8.2 = 89.38 | L28: -10.9 | M28: -8.2 | N28: 89.38 | O28: 1 - 11.9 = ? | Q28: 5 - 13.2 = ? | S28: -10.9 x -8.2 = ?
B29: 5 | C29: 23 | D29: 11.9 | E29: 23 - 11.9 = 11.1 | G29: 12 | H29: 13.2 | I29: 12 - 13.2 = -1.2 | K29: 11.1 x -1.2 = -13.32 | L29: 11.1 | M29: -1.2 | N29: -13.32 | O29: 23 - 11.9 = ? | Q29: 12 - 13.2 = ? | S29: 11.1 x -1.2 = ?
B30: 6 | C30: 10 | D30: 11.9 | E30: 10 - 11.9 = -1.9 | G30: 2 | H30: 13.2 | I30: 2 - 13.2 = -11.2 | K30: -1.9 x -11.2 = 21.28 | L30: -1.9 | M30: -11.2 | N30: 21.28 | O30: 10 - 11.9 = ? | Q30: 2 - 13.2 = ? | S30: -1.9 x -11.2 = ?
B31: 7 | C31: 11 | D31: 11.9 | E31: 11 - 11.9 = -0.9 | G31: 15 | H31: 13.2 | I31: 15 - 13.2 = 1.8 | K31: -0.9 x 1.8 = -1.62 | L31: -0.9 | M31: 1.8 | N31: -1.62 | O31: 11 - 11.9 = ? | Q31: 15 - 13.2 = ? | S31: -0.9 x 1.8 = ?
B32: 8 | C32: 4 | D32: 11.9 | E32: 4 - 11.9 = -7.9 | G32: 25 | H32: 13.2 | I32: 25 - 13.2 = 11.8 | K32: -7.9 x 11.8 = -93.22 | L32: -7.9 | M32: 11.8 | N32: -93.22 | O32: 4 - 11.9 = ? | Q32: 25 - 13.2 = ? | S32: -7.9 x 11.8 = ?
B33: 9 | C33: 9 | D33: 11.9 | E33: 9 - 11.9 = -2.9 | G33: 15 | H33: 13.2 | I33: 15 - 13.2 = 1.8 | K33: -2.9 x 1.8 = -5.22 | L33: -2.9 | M33: 1.8 | N33: -5.22 | O33: 9 - 11.9 = ? | Q33: 15 - 13.2 = ? | S33: -2.9 x 1.8 = ?
B34: 10 | C34: 4 | D34: 11.9 | E34: 4 - 11.9 = -7.9 | G34: 19 | H34: 13.2 | I34: 19 - 13.2 = 5.8 | K34: -7.9 x 5.8 = -45.82 | L34: -7.9 | M34: 5.8 | N34: -45.82 | O34: 4 - 11.9 = ? | Q34: 19 - 13.2 = ? | S34: -7.9 x 5.8 = ?
J35: Column Sum: | K35: =CONCATENATE("'= ",N35) -> '= -37.8 | N35: =ROUND(SUM(N25:N34),2) -> -37.8
B37: SUM OF SQUARES X CALCULATION
B38: Case # | C38: Value of Variable X | D38: Mean of Variable X | E38: Value-Mean Variable X | G38: (Value-Mean)2 Variable X
B39: 1 | C39: =C8 -> 13 | D39: =$H$7 -> 11.9 | E39: =CONCATENATE(C39," - ",D39," = ",H39) -> 13 - 11.9 = 1.1 | G39: =CONCATENATE(H39," x ",H39," = ",I39) -> 1.1 x 1.1 = 1.21 | H39: =ROUND(C39-D39,2) -> 1.1 | I39: =ROUND(H39*H39,2) -> 1.21 | P39: =CONCATENATE(C39," - ",D39," = ?") -> 13 - 11.9 = ? | R39: =CONCATENATE(H39," x ",H39," = ?") -> 1.1 x 1.1 = ?
B40: 2 | C40: 18 | D40: =$H$7 -> 11.9 | E40: =CONCATENATE(C40," - ",D40," = ",H40) -> 18 - 11.9 = 6.1 | G40: =CONCATENATE(H40," x ",H40," = ",I40) -> 6.1 x 6.1 = 37.21 | H40: =ROUND(C40-D40,2) -> 6.1 | I40: =ROUND(H40*H40,2) -> 37.21 | P40: =CONCATENATE(C40," - ",D40," = ?") -> 18 - 11.9 = ? | R40: =CONCATENATE(H40," x ",H40," = ?") -> 6.1 x 6.1 = ?
B41: 3 | C41: 26 | D41: 11.9 | E41: 26 - 11.9 = 14.1 | G41: 14.1 x 14.1 = 198.81 | H41: 14.1 | I41: 198.81 | P41: 26 - 11.9 = ? | R41: 14.1 x 14.1 = ?
B42: 4 | C42: 1 | D42: 11.9 | E42: 1 - 11.9 = -10.9 | G42: -10.9 x -10.9 = 118.81 | H42: -10.9 | I42: 118.81 | P42: 1 - 11.9 = ? | R42: -10.9 x -10.9 = ?
B43: 5 | C43: 23 | D43: 11.9 | E43: 23 - 11.9 = 11.1 | G43: 11.1 x 11.1 = 123.21 | H43: 11.1 | I43: 123.21 | P43: 23 - 11.9 = ? | R43: 11.1 x 11.1 = ?
B44: 6 | C44: 10 | D44: 11.9 | E44: 10 - 11.9 = -1.9 | G44: -1.9 x -1.9 = 3.61 | H44: -1.9 | I44: 3.61 | P44: 10 - 11.9 = ? | R44: -1.9 x -1.9 = ?
B45: 7 | C45: 11 | D45: 11.9 | E45: 11 - 11.9 = -0.9 | G45: -0.9 x -0.9 = 0.81 | H45: -0.9 | I45: 0.81 | P45: 11 - 11.9 = ? | R45: -0.9 x -0.9 = ?
B46: 8 | C46: 4 | D46: 11.9 | E46: 4 - 11.9 = -7.9 | G46: -7.9 x -7.9 = 62.41 | H46: -7.9 | I46: 62.41 | P46: 4 - 11.9 = ? | R46: -7.9 x -7.9 = ?
B47: 9 | C47: 9 | D47: 11.9 | E47: 9 - 11.9 = -2.9 | G47: -2.9 x -2.9 = 8.41 | H47: -2.9 | I47: 8.41 | P47: 9 - 11.9 = ? | R47: -2.9 x -2.9 = ?
B48: 10 | C48: 4 | D48: 11.9 | E48: =CONCATENATE(C48," - ",D48," = ",H48) -> 4 - 11.9 = -7.9 | G48: -7.9 x -7.9 = 62.41 | H48: -7.9 | I48: 62.41 | P48: 4 - 11.9 = ? | R48: -7.9 x -7.9 = ?
F49: Column Sum: | G49: =CONCATENATE("'= ",I49) -> '= 616.9 | I49: =ROUND(SUM(I39:J48),2) -> 616.9
B51: SUM OF SQUARES Y CALCULATION
B52: Case # | C52: Value of Variable Y | D52: Mean of Variable Y | E52: Value-Mean Variable Y | G52: (Value-Mean)2 Variable Y
B53: 1 | C53: =D8 -> 18 | D53: =$H$8 -> 13.2 | E53: =CONCATENATE(C53," - ",D53," = ",H53) -> 18 - 13.2 = 4.8 | G53: =CONCATENATE(H53," x ",H53," = ",I53) -> 4.8 x 4.8 = 23.04 | H53: =ROUND(C53-D53,2) -> 4.8 | I53: =ROUND(H53*H53,2) -> 23.04 | P53: =CONCATENATE(C53," - ",D53," = ?") -> 18 - 13.2 = ? | R53: =CONCATENATE(H53," x ",H53," = ?") -> 4.8 x 4.8 = ?
B54: 2 | C54: 3 | D54: =$H$8 -> 13.2 | E54: =CONCATENATE(C54," - ",D54," = ",H54) -> 3 - 13.2 = -10.2 | G54: =CONCATENATE(H54," x ",H54," = ",I54) -> -10.2 x -10.2 = 104.04 | H54: -10.2 | I54: 104.04 | P54: =CONCATENATE(C54," - ",D54," = ?") -> 3 - 13.2 = ? | R54: =CONCATENATE(H54," x ",H54," = ?") -> -10.2 x -10.2 = ?
B55: 3 | C55: 18 | D55: 13.2 | E55: 18 - 13.2 = 4.8 | G55: 4.8 x 4.8 = 23.04 | H55: 4.8 | I55: 23.04 | P55: =CONCATENATE(C55," - ",D55," = ?") -> 18 - 13.2 = ? | R55: 4.8 x 4.8 = ?
B56: 4 | C56: 5 | D56: 13.2 | E56: 5 - 13.2 = -8.2 | G56: -8.2 x -8.2 = 67.24 | H56: -8.2 | I56: 67.24 | P56: 5 - 13.2 = ? | R56: -8.2 x -8.2 = ?
B57: 5 | C57: 12 | D57: 13.2 | E57: 12 - 13.2 = -1.2 | G57: -1.2 x -1.2 = 1.44 | H57: -1.2 | I57: 1.44 | P57: 12 - 13.2 = ? | R57: -1.2 x -1.2 = ?
B58: 6 | C58: 2 | D58: 13.2 | E58: 2 - 13.2 = -11.2 | G58: -11.2 x -11.2 = 125.44 | H58: -11.2 | I58: 125.44 | P58: 2 - 13.2 = ? | R58: -11.2 x -11.2 = ?
B59: 7 | C59: 15 | D59: 13.2 | E59: 15 - 13.2 = 1.8 | G59: 1.8 x 1.8 = 3.24 | H59: 1.8 | I59: 3.24 | P59: 15 - 13.2 = ? | R59: 1.8 x 1.8 = ?
B60: 8 | C60: 25 | D60: 13.2 | E60: 25 - 13.2 = 11.8 | G60: 11.8 x 11.8 = 139.24 | H60: 11.8 | I60: 139.24 | P60: 25 - 13.2 = ? | R60: 11.8 x 11.8 = ?
B61: 9 | C61: 15 | D61: 13.2 | E61: 15 - 13.2 = 1.8 | G61: 1.8 x 1.8 = 3.24 | H61: 1.8 | I61: 3.24 | P61: 15 - 13.2 = ? | R61: 1.8 x 1.8 = ?
B62: 10 | C62: 19 | D62: 13.2 | E62: 19 - 13.2 = 5.8 | G62: 5.8 x 5.8 = 33.64 | H62: 5.8 | I62: 33.64 | P62: 19 - 13.2 = ? | R62: 5.8 x 5.8 = ?
F63: Column Sum: | G63: =CONCATENATE("'= ",I63) -> '= 523.6 | I63: =ROUND(SUM(I53:J62),2) -> 523.6 | P63: - = ? | R63: x = ?
B65: PEARSON'S CORRELATION COEFFICIENT CALCULATION
B66: Correlation Coefficient Numerator
D67: =CONCATENATE("'= ",N35) -> '= -37.8
B68: Correlation Coefficient Denominator
D69: =CONCATENATE("'= square root of ",I49," x square root of ",I63) -> '= square root of 616.9 x square root of 523.6
D70: =CONCATENATE("'= ", G70," x ",H70) -> '= 24.84 x 22.88 | G70: =ROUND(SQRT(I49),2) -> 24.84 | H70: =ROUND(SQRT(I63),2) -> 22.88
D71: =CONCATENATE("'= ",G71) -> '= 568.34 | G71: =ROUND(G70*H70,2) -> 568.34
B72: Correlation Coefficient
D73: =CONCATENATE("'= ",N35," ÷ ",G71) -> '= -37.8 ÷ 568.34
D74: =CONCATENATE("'= ",G74) -> '= -0.07 | G74: =ROUND(N35/G71,2) -> -0.07
B76: T-STATISTIC CALCULATION
B77: Degrees of Freedom
D78: =CONCATENATE("'= 10 - 2") -> '= 10 - 2
D79: =CONCATENATE("'= 8") -> '= 8
B80: T-Statistic Fraction Numerator
D81: =CONCATENATE("'= 10 - 2") -> '= 10 - 2
D82: =CONCATENATE("'= 8") -> '= 8
B83: T-Statistic Fraction Denominator
D84: =CONCATENATE("'= 1 - (",G74,G84,")") -> '= 1 - (-0.07²) | G84: ²
D85: =CONCATENATE("'= 1 - ",G85) -> '= 1 - 0 | G85: =ROUND(G74*G74,2) -> 0
D86: =CONCATENATE("'= ",G86) -> '= 1 | G86: =1-G85 -> 1
B87: T-Statistic
D88: =CONCATENATE("'= ",G74," x [square root of (8 ÷ ",G86,")]") -> '= -0.07 x [square root of (8 ÷ 1)]
D89: =CONCATENATE("'= ",G74," x (square root of ",G89,")") -> '= -0.07 x (square root of 8) | G89: =ROUND(8/G86,2) -> 8
D90: =CONCATENATE("'= ",G74," x ",G90) -> '= -0.07 x 2.83 | G90: =ROUND(SQRT(G89),2) -> 2.83
D91: =CONCATENATE("'= ",G91) -> '= -0.2 | G91: =ROUND(G74*G90,2) -> -0.2

Sheet Spearman's rho-A (hidden)
B1: PRACTICE CALCULATING SPEARMAN'S RANK-ORDER CORRELATION COEFFICIENTS
B3: Then calculate the sum of products, the sum of squares X, the sum of squares Y and the correlation coefficient. Keep two decimal places in your calculations. To check your answers, click on the 'Show Correlation Coefficient' and/or 'Show T-Statistic' buttons.
B6: Case # | C6: Value of Variable X | D6: Rank of Case on Variable X | E6: Value of Variable Y | F6: Rank of Case on Variable Y | H6: Means
H7: Mean of Variable X Ranks | J7: =ROUND(AVERAGE(D8:D17),2) -> 5.5
B8: 1 | C8: 30 | D8: =_xlfn.RANK.AVG(C8,$C$8:$C$17,1) -> 10 | E8: 46 | F8: =_xlfn.RANK.AVG(E8,$E$8:$E$17,1) -> 9 | H8: Mean of Variable Y Ranks | J8: =ROUND(AVERAGE(F8:F17),2) -> 5.5 | L8: =RANDBETWEEN(1,30) -> 24 | N8: =IF(L8<15,RANDBETWEEN(1,30),RANDBETWEEN(1,50)) -> 38
B9: 2 | C9: 10 | D9: =_xlfn.RANK.AVG(C9,$C$8:$C$17,1) -> 3.5 | E9: 9 | F9: =_xlfn.RANK.AVG(E9,$E$8:$E$17,1) -> 1 | L9: =RANDBETWEEN(1,30) -> 6 | N9: =IF(L9<15,RANDBETWEEN(1,30),RANDBETWEEN(1,50)) -> 20
B10: 3 | C10: 21 | D10: 7 | E10: 41 | F10: 7 | H10: Spearman's Correlation Coefficient | L10: 16 | N10: 1
B11: 4 | C11: 4 | D11: 2 | E11: 27 | F11: 5 | H11: Sum of Products (for ranks) | J11: =N35 -> 46.5 | L11: 6 | N11: 19
B12: 5 | C12: 16 | D12: 5 | E12: 31 | F12: 6 | H12: Sum of Squares X (for ranks) | J12: =H49 -> 80 | L12: 2 | N12: 22
B13: 6 | C13: 10 | D13: 3.5 | E13: 20 | F13: 3 | H13: Sum of Squares Y (for ranks) | J13: =H63 -> 80.5 | L13: 14 | N13: 28
B14: 7 | C14: 21 | D14: 7 | E14: 42 | F14: 8 | H14: Correlation coefficient (ρ) | J14: =G74 -> 0.58 | L14: 16 | N14: 39
B15: 8 | C15: 21 | D15: 7 | E15: 49 | F15: 10 | L15: 23 | N15: 48
B16: 9 | C16: 28 | D16: 9 | E16: 20 | F16: 3 | H16: T-statistic for Spearman's Correlation Coefficient | L16: 20 | N16: 20
B17: 10 | C17: 3 | D17: 1 | E17: 20 | F17: 3 | H17: Number of Cases | J17: =10 -> 10 | L17: 23 | N17: 21
H18: Degrees of Freedom | J18: =J17-2 -> 8
H19: T-statistic | J19: =G91 -> 2.02
B20: Need some help?
H21: If the T-statistic is greater than +/-2.10 then p<0.05.
B23: SUM OF PRODUCTS CALCULATION
B24: Case # | C24: Rank of Case on Variable X | D24: Mean of Variable X Ranks | E24: (Rank-Mean) Variable X | F24: Rank of Case on Variable Y | G24: Mean of Variable Y Ranks | I24: (Rank-Mean) Variable Y | J24: (Rank-Mean Variable X) x (Rank-Mean Variable Y)
B25: 1 | C25: =D8 -> 10 | D25: =$J$7 -> 5.5 | E25: =CONCATENATE(C25," - ",D25," = ",L25) -> 10 - 5.5 = 4.5 | F25: =F8 -> 9 | G25: =$J$8 -> 5.5 | I25: =CONCATENATE(F25," - ",G25," = ",M25) -> 9 - 5.5 = 3.5 | J25: =CONCATENATE(L25," x ",M25," = ",N25) -> 4.5 x 3.5 = 15.75 | K25: =CONCATENATE(L25," x ",M25," = ",N25) -> 4.5 x 3.5 = 15.75 | L25: =ROUND(C25-D25,2) -> 4.5 | M25: =ROUND(F25-G25,2) -> 3.5 | N25: =ROUND(L25*M25,2) -> 15.75 | P25: =CONCATENATE(C25," - ",D25," = ?") -> 10 - 5.5 = ? | Q25: =CONCATENATE(F25," - ",G25," = ?") -> 9 - 5.5 = ? | R25: =CONCATENATE(L25," x ",M25," = ?") -> 4.5 x 3.5 = ? | S25: =CONCATENATE(T25," x ",U25," = ",V25) -> x =
B26: 2 | C26: 3.5 | D26: =$J$7 -> 5.5 | E26: =CONCATENATE(C26," - ",D26," = ",L26) -> 3.5 - 5.5 = -2 | F26: 1 | G26: =$J$8 -> 5.5 | I26: =CONCATENATE(F26," - ",G26," = ",M26) -> 1 - 5.5 = -4.5 | J26: =CONCATENATE(L26," x ",M26," = ",N26) -> -2 x -4.5 = 9 | K26: =CONCATENATE(L26," x ",M26," = ",N26) -> -2 x -4.5 = 9 | L26: =ROUND(C26-D26,2) -> -2 | M26: =ROUND(F26-G26,2) -> -4.5 | N26: =ROUND(L26*M26,2) -> 9 | P26: =CONCATENATE(C26," - ",D26," = ?") -> 3.5 - 5.5 = ? | Q26: =CONCATENATE(F26," - ",G26," = ?") -> 1 - 5.5 = ? | R26: =CONCATENATE(L26," x ",M26," = ?") -> -2 x -4.5 = ? | S26: =CONCATENATE(T26," x ",U26," = ",V26) -> x =
B27: 3 | C27: 7 | D27: 5.5 | E27: 7 - 5.5 = 1.5 | F27: 7 | G27: 5.5 | I27: 7 - 5.5 = 1.5 | J27: 1.5 x 1.5 = 2.25 | K27: 1.5 x 1.5 = 2.25 | L27: 1.5 | M27: 1.5 | N27: 2.25 | P27: 7 - 5.5 = ? | Q27: 7 - 5.5 = ? | R27: 1.5 x 1.5 = ? | S27: x =
B28: 4 | C28: 2 | D28: 5.5 | E28: 2 - 5.5 = -3.5 | F28: 5 | G28: 5.5 | I28: 5 - 5.5 = -0.5 | J28: -3.5 x -0.5 = 1.75 | K28: -3.5 x -0.5 = 1.75 | L28: -3.5 | M28: -0.5 | N28: 1.75 | P28: 2 - 5.5 = ? | Q28: 5 - 5.5 = ? | R28: -3.5 x -0.5 = ? | S28: x =
B29: 5 | C29: 5 | D29: 5.5 | E29: 5 - 5.5 = -0.5 | F29: 6 | G29: 5.5 | I29: 6 - 5.5 = 0.5 | J29: -0.5 x 0.5 = -0.25 | K29: -0.5 x 0.5 = -0.25 | L29: -0.5 | M29: 0.5 | N29: -0.25 | P29: 5 - 5.5 = ? | Q29: 6 - 5.5 = ? | R29: -0.5 x 0.5 = ? | S29: x =
B30: 6 | C30: 3.5 | D30: 5.5 | E30: 3.5 - 5.5 = -2 | F30: 3 | G30: 5.5 | I30: 3 - 5.5 = -2.5 | J30: -2 x -2.5 = 5 | K30: -2 x -2.5 = 5 | L30: -2 | M30: -2.5 | N30: 5 | P30: 3.5 - 5.5 = ? | Q30: 3 - 5.5 = ? | R30: -2 x -2.5 = ? | S30: x =
B31: 7 | C31: 7 | D31: 5.5 | E31: 7 - 5.5 = 1.5 | F31: 8 | G31: 5.5 | I31: 8 - 5.5 = 2.5 | J31: 1.5 x 2.5 = 3.75 | K31: 1.5 x 2.5 = 3.75 | L31: 1.5 | M31: 2.5 | N31: 3.75 | P31: 7 - 5.5 = ? | Q31: 8 - 5.5 = ? | R31: 1.5 x 2.5 = ? | S31: x =
B32: 8 | C32: 7 | D32: 5.5 | E32: 7 - 5.5 = 1.5 | F32: 10 | G32: 5.5 | I32: 10 - 5.5 = 4.5 | J32: 1.5 x 4.5 = 6.75 | K32: 1.5 x 4.5 = 6.75 | L32: 1.5 | M32: 4.5 | N32: 6.75 | P32: 7 - 5.5 = ? | Q32: 10 - 5.5 = ? | R32: 1.5 x 4.5 = ? | S32: x =
B33: 9 | C33: 9 | D33: 5.5 | E33: 9 - 5.5 = 3.5 | F33: 3 | G33: 5.5 | I33: 3 - 5.5 = -2.5 | J33: 3.5 x -2.5 = -8.75 | K33: 3.5 x -2.5 = -8.75 | L33: 3.5 | M33: -2.5 | N33: -8.75 | P33: 9 - 5.5 = ? | Q33: 3 - 5.5 = ? | R33: 3.5 x -2.5 = ? | S33: x =
B34: 10 | C34: 1 | D34: 5.5 | E34: 1 - 5.5 = -4.5 | F34: 3 | G34: 5.5 | I34: 3 - 5.5 = -2.5 | J34: -4.5 x -2.5 = 11.25 | K34: -4.5 x -2.5 = 11.25 | L34: -4.5 | M34: -2.5 | N34: 11.25 | P34: 1 - 5.5 = ? | Q34: 3 - 5.5 = ? | R34: -4.5 x -2.5 = ? | S34: x =
I35: Column Sum: | J35: =CONCATENATE("'= ",N35) -> '= 46.5 | K35: =CONCATENATE("'= ",N35) -> '= 46.5 | N35: =ROUND(SUM(N25:N34),2) -> 46.5
B37: SUM OF SQUARES X CALCULATION
B38: Case # | C38: Rank of Case on Variable X | D38: Mean of Variable X Ranks | E38: (Rank-Mean) Variable X | F38: (Rank-Mean)2 Variable X
B39: 1 | C39: =D8 -> 10 | D39: =$J$7 -> 5.5 | E39: =CONCATENATE(C39," - ",D39," = ",G39) -> 10 - 5.5 = 4.5 | F39: =CONCATENATE(G39," x ",G39," = ",H39) -> 4.5 x 4.5 = 20.25 | G39: =ROUND(C39-D39,2) -> 4.5 | H39: =ROUND(G39*G39,2) -> 20.25 | P39: =CONCATENATE(C39," - ",D39," = ?") -> 10 - 5.5 = ? | Q39: =CONCATENATE(G39," x ",G39," = ?") -> 4.5 x 4.5 = ?
B40: 2 | C40: 3.5 | D40: =$J$7 -> 5.5 | E40: =CONCATENATE(C40," - ",D40," = ",G40) -> 3.5 - 5.5 = -2 | F40: =CONCATENATE(G40," x ",G40," = ",H40) -> -2 x -2 = 4 | G40: =ROUND(C40-D40,2) -> -2 | H40: =ROUND(G40*G40,2) -> 4 | P40: =CONCATENATE(C40," - ",D40," = ?") -> 3.5 - 5.5 = ? | Q40: =CONCATENATE(G40," x ",G40," = ?") -> -2 x -2 = ?
B41: 3 | C41: 7 | D41: 5.5 | E41: 7 - 5.5 = 1.5 | F41: 1.5 x 1.5 = 2.25 | G41: 1.5 | H41: 2.25 | P41: 7 - 5.5 = ? | Q41: 1.5 x 1.5 = ?
B42: 4 | C42: 2 | D42: 5.5 | E42: 2 - 5.5 = -3.5 | F42: -3.5 x -3.5 = 12.25 | G42: -3.5 | H42: 12.25 | P42: 2 - 5.5 = ? | Q42: -3.5 x -3.5 = ?
B43: 5 | C43: 5 | D43: 5.5 | E43: 5 - 5.5 = -0.5 | F43: -0.5 x -0.5 = 0.25 | G43: -0.5 | H43: 0.25 | P43: 5 - 5.5 = ? | Q43: -0.5 x -0.5 = ?
B44: 6 | C44: 3.5 | D44: 5.5 | E44: 3.5 - 5.5 = -2 | F44: -2 x -2 = 4 | G44: -2 | H44: 4 | P44: 3.5 - 5.5 = ? | Q44: -2 x -2 = ?
B45: 7 | C45: 7 | D45: 5.5 | E45: 7 - 5.5 = 1.5 | F45: 1.5 x 1.5 = 2.25 | G45: 1.5 | H45: 2.25 | P45: 7 - 5.5 = ? | Q45: 1.5 x 1.5 = ?
B46: 8 | C46: 7 | D46: 5.5 | E46: 7 - 5.5 = 1.5 | F46: 1.5 x 1.5 = 2.25 | G46: 1.5 | H46: 2.25 | P46: 7 - 5.5 = ? | Q46: 1.5 x 1.5 = ?
B47: 9 | C47: 9 | D47: 5.5 | E47: 9 - 5.5 = 3.5 | F47: 3.5 x 3.5 = 12.25 | G47: 3.5 | H47: 12.25 | P47: 9 - 5.5 = ? | Q47: 3.5 x 3.5 = ?
B48: 10 | C48: 1 | D48: 5.5 | E48: 1 - 5.5 = -4.5 | F48: -4.5 x -4.5 = 20.25 | G48: -4.5 | H48: 20.25 | P48: 1 - 5.5 = ? | Q48: -4.5 x -4.5 = ?
E49: Column Sum: | F49: =CONCATENATE("'= ",H49) -> '= 80 | H49: =ROUND(SUM(H39:H48),2) -> 80
B51: SUM OF SQUARES Y CALCULATION
B52: Case # | C52: Rank of Case on Variable Y | D52: Mean of Variable Y Ranks | E52: (Rank-Mean) Variable Y | F52: (Rank-Mean)2 Variable Y
B53: 1 | C53: =F8 -> 9 | D53: =$J$8 -> 5.5 | E53: =CONCATENATE(C53," - ",D53," = ",G53) -> 9 - 5.5 = 3.5 | F53: =CONCATENATE(G53," x ",G53," = ",H53) -> 3.5 x 3.5 = 12.25 | G53: =ROUND(C53-D53,2) -> 3.5 | H53: =ROUND(G53*G53,2) -> 12.25 | P53: =CONCATENATE(C53," - ",D53," = ?") -> 9 - 5.5 = ? | Q53: =CONCATENATE(G53," x ",G53," = ?") -> 3.5 x 3.5 = ?
B54: 2 | C54: 1 | D54: =$J$8 -> 5.5 | E54: =CONCATENATE(C54," - ",D54," = ",G54) -> 1 - 5.5 = -4.5 | F54: =CONCATENATE(G54," x ",G54," = ",H54) -> -4.5 x -4.5 = 20.25 | G54: =ROUND(C54-D54,2) -> -4.5 | H54: =ROUND(G54*G54,2) -> 20.25 | P54: =CONCATENATE(C54," - ",D54," = ?") -> 1 - 5.5 = ? | Q54: =CONCATENATE(G54," x ",G54," = ?") -> -4.5 x -4.5 = ?
B55: 3 | C55: 7 | D55: 5.5 | E55: 7 - 5.5 = 1.5 | F55: 1.5 x 1.5 = 2.25 | G55: 1.5 | H55: 2.25 | P55: 7 - 5.5 = ? | Q55: 1.5 x 1.5 = ?
B56: 4 | C56: 5 | D56: 5.5 | E56: 5 - 5.5 = -0.5 | F56: -0.5 x -0.5 = 0.25 | G56: -0.5 | H56: 0.25 | P56: 5 - 5.5 = ? | Q56: -0.5 x -0.5 = ?
B57: 5 | C57: 6 | D57: 5.5 | E57: 6 - 5.5 = 0.5 | F57: 0.5 x 0.5 = 0.25 | G57: 0.5 | H57: 0.25 | P57: 6 - 5.5 = ? | Q57: 0.5 x 0.5 = ?
B58: 6 | C58: 3 | D58: 5.5 | E58: 3 - 5.5 = -2.5 | F58: -2.5 x -2.5 = 6.25 | G58: -2.5 | H58: 6.25 | P58: 3 - 5.5 = ? | Q58: -2.5 x -2.5 = ?
B59: 7 | C59: 8 | D59: 5.5 | E59: 8 - 5.5 = 2.5 | F59: 2.5 x 2.5 = 6.25 | G59: 2.5 | H59: 6.25 | P59: 8 - 5.5 = ? | Q59: 2.5 x 2.5 = ?
B60: 8 | C60: 10 | D60: 5.5 | E60: 10 - 5.5 = 4.5 | F60: 4.5 x 4.5 = 20.25 | G60: 4.5 | H60: 20.25 | P60: 10 - 5.5 = ? | Q60: 4.5 x 4.5 = ?
B61: 9 | C61: 3 | D61: 5.5 | E61: 3 - 5.5 = -2.5 | F61: -2.5 x -2.5 = 6.25 | G61: -2.5 | H61: 6.25 | P61: 3 - 5.5 = ? | Q61: -2.5 x -2.5 = ?
B62: 10 | C62: 3 | D62: 5.5 | E62: 3 - 5.5 = -2.5 | F62: -2.5 x -2.5 = 6.25 | G62: -2.5 | H62: 6.25 | P62: 3 - 5.5 = ? | Q62: -2.5 x -2.5 = ?
E63: Column Sum: | F63: =CONCATENATE("'= ",H63) -> '= 80.5 | H63: =ROUND(SUM(H53:H62),2) -> 80.5
B65: SPEARMAN'S CORRELATION COEFFICIENT CALCULATION
B66: Correlation Coefficient Numerator
D67: =CONCATENATE("'= ",N35) -> '= 46.5
B68: Correlation Coefficient Denominator
D69: =CONCATENATE("'= square root of ",H49," x square root of ",H63) -> '= square root of 80 x square root of 80.5
D70: =CONCATENATE("'= ", G70," x ",H70) -> '= 8.94 x 8.97 | G70: =ROUND(SQRT(H49),2) -> 8.94 | H70: =ROUND(SQRT(H63),2) -> 8.97
D71: =IF(H63=H49,CONCATENATE("'= ",G71," (when two square roots of the same number are multiplied, the result is the original number)"),CONCATENATE("'= ",G71)) -> '= 80.19 | G71: =IF(H49=H63,H49,ROUND(G70*H70,2)) -> 80.19
B72: Correlation Coefficient
D73: =CONCATENATE("'= ",N35," ÷ ",G71) -> '= 46.5 ÷ 80.19
D74: =CONCATENATE("'= ",G74) -> '= 0.58 | G74: =ROUND(N35/G71,2) -> 0.58
B76: T-STATISTIC CALCULATION
B77: Degrees of Freedom
D78: =CONCATENATE("'= 10 - 2") -> '= 10 - 2
D79: =CONCATENATE("'= 8") -> '= 8
B80: T-Statistic Fraction Numerator
D81: =CONCATENATE("'= 10 - 2") -> '= 10 - 2
D82: =CONCATENATE("'= 8") -> '= 8
B83: T-Statistic Fraction Denominator
D84: =CONCATENATE("'= 1 - (",G74,G84,")") -> '= 1 - (0.58²) | G84: ²
D85: =CONCATENATE("'= 1 - ",G85) -> '= 1 - 0.34 | G85: =ROUND(G74*G74,2) -> 0.34
D86: =CONCATENATE("'= ",G86) -> '= 0.66 | G86: =1-G85 -> 0.66
B87: T-Statistic
D88: =CONCATENATE("'= ",G74," x [square root of (8 ÷ ",G86,")]") -> '= 0.58 x [square root of (8 ÷ 0.66)]
D89: =CONCATENATE("'= ",G74," x (square root of ",G89,")") -> '= 0.58 x (square root of 12.12) | G89: =ROUND(8/G86,2) -> 12.12
D90: =CONCATENATE("'= ",G74," x ",G90) -> '= 0.58 x 3.48 | G90: =ROUND(SQRT(G89),2) -> 3.48
D91: =CONCATENATE("'= ",G91) -> '= 2.02 | G91: =ROUND(G74*G90,2) -> 2.02
